bitfinex-derivatives/quotes_SOLF0:USTF0_20230105
["timestamp","ask_amount","ask_price","bid_price","bid_amount"]
[1672884217707,62.9694,13.225,13.216,0.06351444]
[1672884218541,7.5,13.223,13.216,0.06351444]
[1672884218860,10.0,13.222,13.216,0.06351444]
[1672884223588,1834.0,13.208,13.196,7.52]
[1672884223795,7.47,13.206,13.196,7.52]
[1672884224008,57.47,13.206,13.196,7.52]
[1672884224323,10.0,13.205,13.196,7.52]
[1672884224534,10.06267211,13.205,13.196,7.52]
[1672884225902,7.52,13.204,13.194,7.45]
[1672884226114,10.0,13.203,13.194,7.45]
[1672884228001,7.52,13.202,13.192,7.52]
[1672884228211,10.0,13.201,13.192,7.52]
[1672884228527,10.0,13.195,13.187,7.48]
[1672884228738,17.47,13.195,13.185,7.45]
[1672884228950,10.0,13.194,13.185,7.45]
[1672884231356,17.53048476,13.195,13.185,7.45]
[1672884231569,0.06048476,13.195,13.19,7.52]
[1672884233673,0.06048476,13.195,13.188,7.52]
[1672884234093,0.06048476,13.195,13.187,7.52]
[1672884235666,0.06048476,13.195,13.187,7.41188474]
[1672884238506,7.56048476,13.195,13.185,7.52]
[1672884238726,10.0,13.194,13.185,7.52]
[1672884241244,7.5,13.193,13.183,7.45]
[1672884241451,10.0,13.192,13.183,7.45]
[1672884241656,10.06427444,13.192,13.184,7.45]
[1672884242711,10.06427444,13.192,13.186,7.52]
[1672884244185,0.06427444,13.192,13.186,7.52]
[1672884246807,0.06427444,13.192,13.184,7.48]
[1672884247120,7.58427444,13.192,13.182,7.45]
[1672884248486,10.0,13.191,13.182,7.45]
[1672884249333,50.0,13.187,13.182,7.45]
[1672884249644,10.0,13.186,13.182,7.45]
[1672884250698,10.0,13.186,13.18,7.48]
[1672884251540,10.0,13.187,13.18,7.48]
[1672884252586,60.0,13.187,13.178,7.52]
[1672884252801,7.52,13.186,13.177,7.48]
[1672884253011,10.0,13.185,13.177,7.48]
[1672884253218,17.52,13.185,13.175,7.48]
[1672884253540,7.5,13.183,13.173,7.45]
[1672884253745,10.0,13.182,13.173,7.45]
[1672884253957,10.06754996,13.182,13.173,7.45]
[1672884254379,7.5,13.181,13.171,7.52]
[1672884254588,10.0,13.18,13.171,7.52]
[1672884256056,10.06754996,13.182,13.173,7.45]
[1672884256270,0.06376297,13.182,13.178,7.48]
[1672884257950,7.52,13.181,13.17,7.45]
[1672884258170,10.06389524,13.18,13.17,7.45]
[1672884260694,7.52,13.177,13.167,7.48]
[1672884260902,10.0,13.176,13.167,7.48]
[1672884261108,10.0,13.176,13.159,76.009]
[1672884261109,7.52,13.172,13.119,57.17]
[1672884261327,7.52,13.161,13.15,7.52]
[1672884261524,0.06812835,13.16,13.143,50.0]
[1672884261736,0.06936842,13.156,13.151,10.0]
[1672884261945,0.06030952,13.158,13.152,38.026]
[1672884262270,0.06134697,13.16,13.153,10.0]
[1672884262481,0.06930169,13.161,13.156,7.45]
[1672884262695,0.07090613,13.163,13.154,7.52]
[1672884262898,7.58141794,13.163,13.152,7.52]
[1672884263108,50.0,13.158,13.151,7.52]
[1672884263318,7.52,13.156,13.145,7.52]
[1672884263631,0.06604852,13.155,13.144,10.0]
[1672884263835,0.06604852,13.155,13.154,7.52]
[1672884264050,0.07000641,13.159,13.154,7.52]
[1672884264260,0.06667025,13.161,13.154,7.52]
[1672884264677,38.009,13.159,13.154,7.52]
[1672884264890,10.0,13.158,13.154,7.52]
[1672884265106,48.004,13.16,13.154,7.52]
[1672884267523,38.004,13.16,13.154,7.52]
[1672884268683,10.0,13.159,13.154,7.52]
[1672884268887,38.011,13.158,13.152,7.48]
[1672884269098,10.0,13.157,13.151,7.45]
[1672884269420,38.018,13.156,13.151,7.45]
[1672884269637,114.053,13.156,13.151,45.66]
[1672884270158,10.0,13.155,13.149,45.66]
[1672884270361,48.021,13.155,13.149,45.66]
[1672884270996,10.0,13.155,13.149,45.66]
[1672884271526,10.0,13.155,13.146,45.45]
[1672884271733,10.06877973,13.155,13.146,45.45]
[1672884271943,48.08777973,13.155,13.146,45.45]
[1672884273307,48.08777973,13.155,13.148,45.45]
[1672884274775,48.08777973,13.155,13.142,45.51]
[1672884274989,38.034,13.15,13.142,45.51]
[1672884275199,10.0,13.149,13.142,45.51]
[1672884275613,38.042,13.147,13.142,45.51]
[1672884275831,10.0,13.146,13.142,45.51]
[1672884276572,48.045,13.146,13.142,45.51]
[1672884277197,48.045,13.146,13.136,10.0]
[1672884277198,48.045,13.146,13.141,45.66]
[1672884278772,124.134,13.146,13.137,45.66]
[1672884278983,124.19980907,13.146,13.137,45.66]
[1672884279195,124.19980907,13.146,13.135,45.45]
[1672884279395,0.13850305,13.137,13.135,45.45]
[1672884279608,38.20950305,13.137,13.135,45.45]
[1672884281599,10.0,13.136,13.13,45.45]
[1672884281809,114.14728484,13.135,13.126,45.45]
[1672884282023,38.05915101,13.135,13.132,45.45]
[1672884282230,37.98928484,13.135,13.134,45.24]
[1672884282865,0.13850305,13.137,13.134,45.24]
[1672884282866,38.074,13.136,13.134,45.24]
[1672884283176,114.115,13.149,13.136,10.0]
[1672884283391,10.0,13.15,13.143,45.24]
[1672884284018,114.122,13.148,13.143,45.24]
[1672884284435,10.0,13.147,13.143,45.24]
[1672884284755,38.039,13.148,13.143,45.24]
[1672884284966,38.045,13.146,13.143,45.24]
[1672884285172,38.045,13.146,13.144,45.66]
[1672884286017,38.038,13.149,13.145,10.0]
[1672884286229,38.038,13.149,13.146,45.24]
[1672884286968,0.00037704,13.15,13.148,45.45]
[1672884287178,76.026,13.157,13.149,55.66]
[1672884287389,38.022,13.154,13.153,45.66]
[1672884288227,0.0615522,13.158,13.154,38.02]
[1672884288439,10.0,13.159,13.157,45.66]
[1672884288966,38.01,13.158,13.155,45.24]
[1672884293065,38.01,13.158,13.153,0.06737129]
[1672884293585,38.01,13.158,13.154,45.66]
[1672884294213,38.01,13.158,13.153,0.06737129]
[1672884294434,10.0,13.157,13.145,45.66]
[1672884294639,114.069,13.154,13.145,45.66]
[1672884294848,10.0,13.153,13.145,45.66]
[1672884295584,10.0,13.15,13.145,45.66]
[1672884296842,10.0,13.148,13.145,45.66]
[1672884297049,76.083,13.147,13.144,0.06804068]
[1672884297263,10.0,13.146,13.142,45.45]
[1672884298108,38.048,13.145,13.142,45.45]
[1672884298319,10.0,13.144,13.142,45.45]
[1672884298636,86.101,13.144,13.142,45.45]
[1672884298947,76.101,13.144,13.142,45.45]
[1672884299368,38.053,13.143,13.142,45.45]
[1672884299568,45.45,13.142,13.139,45.45]
[1672884299780,45.45,13.142,13.138,0.06756769]
[1672884299781,76.126,13.14,13.136,0.06603826]
[1672884299991,10.0,13.139,13.134,45.66]
[1672884300632,38.069,13.138,13.134,45.66]
[1672884301783,38.069,13.138,13.133,0.0642178]
[1672884302624,38.069,13.138,13.136,45.66]
[1672884302834,38.069,13.138,13.137,10.0]
[1672884303362,38.069,13.138,13.136,45.66]
[1672884304523,38.069,13.138,13.134,45.66]
[1672884305464,38.069,13.138,13.133,45.7242178]
[1672884312500,10.06608819,13.14,13.126,45.45]
[1672884312501,10.0,13.137,13.126,45.45]
[1672884313236,67.09,13.137,13.116,40.4527]
[1672884313452,0.07073712,13.131,13.115,50.0]
[1672884313663,10.0,13.137,13.115,50.0]
[1672884313977,10.0,13.137,13.116,10.0]
[1672884313978,0.06760351,13.131,13.116,10.0]
[1672884314188,0.06245895,13.128,13.116,10.0]
[1672884314399,0.06336311,13.127,13.116,10.0]
[1672884314607,10.0,13.137,13.116,10.0]
[1672884314608,0.06076118,13.126,13.116,10.0]
[1672884314810,0.06670773,13.126,13.116,10.0]
[1672884316284,0.06670773,13.126,13.115,60.0]
[1672884316909,0.06670773,13.126,13.11,10.0]
[1672884317124,0.06670773,13.126,13.115,50.0]
[1672884317339,0.06263657,13.125,13.116,10.0]
[1672884317651,0.06686137,13.125,13.116,10.0]
[1672884319229,0.06686137,13.125,13.115,50.0]
[1672884319644,0.06686137,13.125,13.105,50.0]
[1672884319859,10.0,13.129,13.105,50.0]
[1672884320174,0.06847301,13.122,13.105,50.0]
[1672884321332,0.06999118,13.118,13.105,50.0]
[1672884321541,0.06999118,13.118,13.106,10.0]
[1672884322065,114.411,13.115,13.095,50.0]
[1672884322382,0.07046885,13.11,13.096,10.0]
[1672884323113,0.07046885,13.11,13.104,45.24]
[1672884323327,0.07046885,13.11,13.096,10.0]
[1672884323539,50.07046885,13.11,13.093,10.0]
[1672884323741,0.06245359,13.106,13.097,45.66]
[1672884324059,0.06304817,13.106,13.096,45.45]
[1672884324480,0.0005063,13.106,13.098,45.66]
[1672884324687,0.0005063,13.106,13.102,45.24]
[1672884325217,0.0005063,13.106,13.1,45.51]
[1672884325634,0.0005063,13.106,13.101,10.0]
[1672884326054,0.0005063,13.106,13.102,45.51]
[1672884326269,0.0005063,13.106,13.103,10.0]
[1672884326479,0.06125739,13.109,13.103,10.0]
[1672884326684,10.0631255,13.111,13.103,9.89712278]
[1672884326898,10.0631255,13.111,13.105,45.45]
[1672884327107,45.38,13.125,13.11,45.45]
[1672884327314,50.0,13.13,13.113,45.51]
[1672884327315,10.0,13.124,13.113,45.51]
[1672884328263,0.06290004,13.123,13.114,0.06778011]
[1672884328472,44.56963424,13.123,13.114,0.06814557]
[1672884328683,10.0,13.122,13.114,0.06814557]
[1672884328896,50.0,13.12,13.114,0.06814557]
[1672884329103,10.0,13.119,13.106,10.0]
[1672884329523,10.0,13.119,13.105,52.79]
[1672884329734,67.17,13.119,13.105,52.79]
[1672884329944,0.06955318,13.117,13.107,0.06089522]
[1672884330259,53.14955318,13.117,13.107,0.06089522]
[1672884330786,10.0,13.116,13.107,0.06089522]
[1672884331625,43.8968,13.115,13.107,0.06089522]
[1672884332571,10.0,13.114,13.107,0.06089522]
[1672884333831,43.8968,13.115,13.107,0.06089522]
[1672884334469,10.0,13.114,13.107,0.06089522]
[1672884334775,43.8968,13.115,13.107,0.06089522]
[1672884335612,0.06955318,13.117,13.109,53.07]
[1672884335823,0.06955318,13.117,13.11,10.0]
[1672884336036,114.412,13.114,13.11,10.0]
[1672884337616,0.06955318,13.117,13.11,10.0]
[1672884340042,0.06955318,13.117,13.113,53.08]
[1672884340351,0.06955318,13.117,13.114,10.0]
[1672884340562,0.06708303,13.12,13.114,10.0]
[1672884341290,0.06708303,13.12,13.115,53.08]
[1672884341507,10.0,13.131,13.119,10.0]
[1672884341713,50.0,13.13,13.12,53.08]
[1672884341918,10.0,13.129,13.12,53.08]
[1672884342557,10.06893514,13.129,13.12,53.14357058]
[1672884342763,0.06893514,13.129,13.121,10.0]
[1672884343913,0.06893514,13.129,13.124,53.08]
[1672884344131,42.9714,13.133,13.127,53.08]
[1672884344448,42.9714,13.133,13.128,10.0]
[1672884344872,10.0,13.137,13.128,10.0]
[1672884345384,10.06802795,13.137,13.128,10.06489148]
[1672884345599,0.06802795,13.137,13.131,53.07]
[1672884345819,0.06802795,13.137,13.132,10.0]
[1672884346969,0.06802795,13.137,13.129,52.79]
[1672884347284,0.06802795,13.137,13.128,0.06489148]
[1672884347285,10.06802795,13.137,13.128,0.06489148]
[1672884347701,53.08,13.135,13.128,0.06489148]
[1672884348015,10.0,13.134,13.12,10.0]
[1672884348966,0.06141563,13.132,13.122,0.06887496]
[1672884349799,0.06141563,13.132,13.122,52.90887496]
[1672884350016,0.06141563,13.132,13.123,10.0]
[1672884352113,0.06141563,13.132,13.122,52.90887496]
[1672884352323,0.06141563,13.132,13.123,10.0]
[1672884352742,0.06141563,13.132,13.122,52.90887496]
[1672884352957,0.06141563,13.132,13.123,10.0]
[1672884353588,0.06141563,13.132,13.122,52.90887496]
[1672884353798,0.06141563,13.132,13.123,10.0]
[1672884354113,266.638,13.13,13.123,10.0]
[1672884354424,10.0,13.129,13.122,52.90887496]
[1672884355790,10.0,13.129,13.122,0.06887496]
[1672884357895,76.183,13.13,13.122,0.06887496]
[1672884358104,10.0,13.129,13.122,0.06887496]
[1672884360418,10.0,13.13,13.122,0.06887496]
[1672884360633,43.4995,13.131,13.122,0.06887496]
[1672884361780,10.0,13.13,13.122,0.06887496]
[1672884362413,43.4995,13.131,13.122,0.06887496]
[1672884364200,0.06141563,13.132,13.122,38.18187496]
[1672884364417,0.06141563,13.132,13.123,10.0]
[1672884365570,0.06141563,13.132,13.126,10.0]
[1672884368400,0.06141563,13.132,13.13,53.4]
[1672884368612,0.06000487,13.136,13.131,10.0]
[1672884368829,0.06914671,13.138,13.136,0.19978294]
[1672884369041,0.06796131,13.142,13.136,0.19978294]
[1672884370723,0.06796131,13.142,13.137,10.0]
[1672884371555,43.0041,13.15,13.141,53.4]
[1672884371768,43.0041,13.15,13.142,10.0]
[1672884373341,0.06531305,13.151,13.142,10.0]
[1672884373968,0.06531305,13.151,13.141,53.46790549]
[1672884374182,50.06531305,13.151,13.141,53.46790549]
[1672884374606,10.0,13.15,13.141,53.46790549]
[1672884375127,10.0,13.15,13.141,0.06790549]
[1672884375341,63.33,13.15,13.141,5.49e-06]
[1672884375549,57.04,13.149,13.141,5.49e-06]
[1672884375759,52.98,13.146,13.136,0.19978294]
[1672884375965,50.0,13.141,13.136,0.19978294]
[1672884376182,10.0,13.14,13.13,53.4]
[1672884377028,10.06442251,13.14,13.13,53.47109938]
[1672884378386,63.13442251,13.14,13.13,0.07109938]
[1672884381231,10.0,13.138,13.13,0.07109938]
[1672884382280,51.9738,13.139,13.13,0.07109938]
[1672884383649,10.0,13.138,13.13,0.07109938]
[1672884384908,41.9738,13.139,13.13,0.07109938]
[1672884390685,0.06442251,13.14,13.133,52.9]
[1672884390897,0.06442251,13.14,13.134,10.0]
[1672884391525,0.06442251,13.14,13.133,52.9]
[1672884391738,0.06442251,13.14,13.134,10.0]
[1672884392262,0.06442251,13.14,13.133,52.9]
[1672884392472,0.06442251,13.14,13.134,10.0]
[1672884393732,0.06442251,13.14,13.132,10.0]
[1672884393943,114.214,13.137,13.132,10.0]
[1672884394156,114.214,13.137,13.131,52.94]
[1672884395090,114.214,13.137,13.132,10.0]
[1672884395409,114.214,13.137,13.133,53.4]
[1672884395624,114.214,13.137,13.134,10.0]
[1672884396781,114.214,13.137,13.133,53.4]
[1672884397094,114.214,13.137,13.135,53.4]
[1672884397299,114.214,13.137,13.136,10.0]
[1672884397935,37.81044629,13.137,13.136,10.0]
[1672884398245,584.0,13.15,13.137,10.0]
[1672884398458,584.0,13.15,13.144,10.0]
[1672884399081,584.0,13.15,13.146,45.73]
[1672884399297,44.4241,13.156,13.146,45.73]
[1672884399615,0.06442681,13.153,13.147,45.73]
[1672884399821,10.06340049,13.155,13.148,10.0]
[1672884400036,10.06340049,13.155,13.146,0.07065697]
[1672884400242,45.62,13.152,13.139,45.73]
[1672884400460,45.73,13.15,13.137,45.73]
[1672884400771,10.0,13.149,13.137,45.73]
[1672884400982,238.223,13.149,13.137,45.73]
[1672884401298,0.07029784,13.148,13.138,0.06303226]
[1672884401509,114.139,13.145,13.138,0.06303226]
[1672884401719,10.0,13.144,13.138,0.06303226]
[1672884402033,38.054,13.143,13.138,0.06303226]
[1672884402560,38.1160419,13.145,13.138,0.06303226]
[1672884402561,0.0700419,13.145,13.142,45.73]
[1672884402767,0.06219914,13.148,13.144,45.73]
[1672884402980,76.076,13.149,13.145,10.0]
[1672884403295,10.0,13.147,13.144,45.73]
[1672884403506,76.076,13.149,13.144,45.73]
[1672884403711,38.043,13.146,13.144,45.73]
[1672884404137,38.043,13.146,13.145,45.73]
[1672884409392,38.043,13.146,13.144,45.73]
[1672884410338,38.043,13.146,13.142,45.73]
[1672884411809,38.043,13.146,13.144,45.73]
[1672884413384,38.043,13.146,13.141,0.06592744]
[1672884415484,38.043,13.146,13.142,45.73]
[1672884416112,38.043,13.146,13.143,45.35]
[1672884421579,38.043,13.146,13.141,0.06592744]
[1672884427357,38.043,13.146,13.143,10.0]
[1672884427769,38.043,13.146,13.142,45.73]
[1672884429034,38.058,13.141,13.125,50.0]
[1672884429250,10.0,13.14,13.131,45.73]
[1672884429455,10.0,13.14,13.132,10.0]
[1672884429877,10.0,13.14,13.131,45.73]
[1672884430087,228.414,13.138,13.131,45.79087564]
[1672884430297,10.0,13.137,13.131,45.79087564]
[1672884430713,114.225,13.136,13.131,45.79087564]
[1672884430929,10.0,13.135,13.13,45.73]
[1672884431247,152.32,13.134,13.133,45.73]
[1672884431769,152.32,13.134,13.133,7.496]
[1672884437125,152.32,13.134,13.133,45.73]
[1672884438806,38.08,13.134,13.133,45.73]
[1672884439127,76.151,13.136,13.133,45.73]
[1672884439353,76.151,13.136,13.135,45.73]
[1672884439648,114.223,13.136,13.135,45.73]
[1672884440067,10.0,13.135,13.131,182.92]
[1672884440272,48.075,13.135,13.126,10.0]
[1672884440488,10.0,13.134,13.131,45.73]
[1672884440704,76.163,13.133,13.131,45.73]
[1672884440905,114.244,13.133,13.131,45.73]
[1672884441115,10.0,13.132,13.13,45.73]
[1672884441330,10.0,13.132,13.124,45.73]
[1672884441331,114.261,13.131,13.124,45.73]
[1672884441542,114.286,13.129,13.124,45.73]
[1672884441957,114.298,13.127,13.124,45.73]
[1672884442170,10.0,13.126,13.124,45.73]
[1672884442596,114.313,13.125,13.124,45.73]
[1672884443532,114.313,13.125,13.123,45.73]
[1672884443741,114.313,13.125,13.121,45.73]
[1672884443951,10.0,13.124,13.121,45.73]
[1672884444165,10.0,13.124,13.12,45.35]
[1672884446059,124.311,13.126,13.12,45.35]
[1672884447005,0.06017613,13.127,13.121,10.0]
[1672884447425,0.06017613,13.127,13.12,45.35]
[1672884447627,0.06017613,13.127,13.121,10.0]
[1672884448048,0.06017613,13.127,13.12,45.35]
[1672884448260,0.06017613,13.127,13.123,45.73]
[1672884448472,0.06017613,13.127,13.124,10.0]
[1672884448688,0.07055768,13.13,13.124,10.0]
[1672884448894,10.07055768,13.13,13.123,45.73]
[1672884449103,10.0,13.129,13.123,45.73]
[1672884450159,10.07055768,13.13,13.123,45.73]
[1672884456040,10.07055768,13.13,13.118,45.73]
[1672884456251,0.06156665,13.129,13.117,45.73]
[1672884456455,45.79782745,13.128,13.118,10.0]
[1672884456670,10.0,13.127,13.116,10.0]
[1672884456879,10.0,13.127,13.115,45.73]
[1672884460666,10.0,13.127,13.119,45.73]
[1672884460871,10.0708241,13.128,13.123,45.73]
[1672884460872,0.06514852,13.128,13.123,45.73]
[1672884461086,0.06514852,13.128,13.124,10.0]
[1672884461611,0.06514852,13.128,13.123,45.73]
[1672884463922,0.06514852,13.128,13.124,10.0]
[1672884464344,0.06514852,13.128,13.123,45.73]
[1672884464555,0.06514852,13.128,13.124,10.0]
[1672884465080,0.06514852,13.128,13.123,45.73]
[1672884465286,0.06514852,13.128,13.124,10.0]
[1672884465708,0.06514852,13.128,13.123,45.73]
[1672884466021,0.06514852,13.128,13.124,10.0]
[1672884466867,0.06514852,13.128,13.123,45.73]
[1672884467072,0.06514852,13.128,13.124,10.0]
[1672884467390,0.06514852,13.128,13.126,10.0]
[1672884467597,10.0,13.13,13.125,45.73]
[1672884467807,10.0,13.13,13.119,45.73]
[1672884468018,0.06012279,13.129,13.12,10.0]
[1672884468547,0.06012279,13.129,13.119,45.73]
[1672884468757,0.06012279,13.129,13.12,10.0]
[1672884469173,0.06012279,13.129,13.119,45.73]
[1672884469388,0.06012279,13.129,13.12,10.0]
[1672884470756,0.06012279,13.129,13.124,45.73]
[1672884470963,0.06012279,13.129,13.126,45.73]
[1672884471171,45.8087,13.131,13.127,10.0]
[1672884471592,45.8087,13.131,13.126,45.73]
[1672884472430,45.8087,13.131,13.128,45.73]
[1672884472645,0.06405916,13.132,13.13,45.73]
[1672884472855,0.06784089,13.136,13.131,10.0]
[1672884473589,0.06784089,13.136,13.133,10.0]
[1672884473791,0.06805679,13.139,13.133,10.0]
[1672884474005,10.06242955,13.141,13.133,10.0]
[1672884474429,10.06242955,13.141,13.132,45.73]
[1672884475685,0.06242955,13.141,13.132,45.73]
[1672884475901,0.06242955,13.141,13.133,10.0]
[1672884476427,0.06242955,13.141,13.133,55.73]
[1672884476953,0.06242955,13.141,13.135,45.35]
[1672884477163,0.06242955,13.141,13.136,10.0]
[1672884477692,0.06242955,13.141,13.135,45.35]
[1672884477898,0.06242955,13.141,13.136,10.0]
[1672884479052,0.06242955,13.141,13.135,45.35]
[1672884479266,0.06242955,13.141,13.136,10.0]
[1672884480528,0.06242955,13.141,13.135,45.35]
[1672884480728,0.06242955,13.141,13.136,10.0]
[1672884481048,0.06242955,13.141,13.135,45.35]
[1672884481261,0.06242955,13.141,13.136,10.0]
[1672884481893,0.06242955,13.141,13.135,45.35]
[1672884482944,0.00242955,13.141,13.136,10.0]
[1672884483153,584.0,13.148,13.14,45.73]
[1672884483364,584.0,13.148,13.143,45.73]
[1672884483678,10.0,13.147,13.136,45.73]
[1672884484096,0.06775568,13.146,13.137,0.06408052]
[1672884485779,57.11775568,13.146,13.137,0.06408052]
[1672884485991,10.0,13.145,13.137,0.06408052]
[1672884486198,55.73,13.145,13.137,0.06408052]
[1672884486941,55.73,13.145,13.137,8.052e-05]
[1672884488407,10.0,13.145,13.137,8.052e-05]
[1672884492926,41.7781,13.144,13.137,8.052e-05]
[1672884493236,10.0,13.143,13.137,8.052e-05]
[1672884498498,41.7781,13.144,13.137,8.052e-05]
[1672884499547,41.7781,13.144,13.137,45.73008052]
[1672884499964,10.0,13.143,13.137,8.052e-05]
[1672884506059,0.06775568,13.146,13.139,45.73]
[1672884506276,0.06775568,13.146,13.14,10.0]
[1672884506688,0.06775568,13.146,13.141,45.73]
[1672884507012,0.06775568,13.146,13.142,10.0]
[1672884507223,0.06775568,13.146,13.141,45.73]
[1672884508485,0.06775568,13.146,13.142,10.0]
[1672884508905,0.06775568,13.146,13.141,45.73]
[1672884509219,0.06775568,13.146,13.142,10.0]
[1672884509423,0.06775568,13.146,13.141,45.73]
[1672884509632,0.06775568,13.146,13.142,10.0]
[1672884510050,0.06775568,13.146,13.141,45.73]
[1672884511320,0.06775568,13.146,13.142,10.0]
[1672884511737,0.06775568,13.146,13.141,45.73]
[1672884511948,0.06775568,13.146,13.142,10.0]
[1672884512687,0.06775568,13.146,13.145,45.73]
[1672884512896,629.006,13.153,13.145,45.73]
[1672884513100,629.006,13.153,13.147,45.73]
[1672884515091,584.0,13.153,13.15,45.73]
[1672884515625,0.06498684,13.155,13.15,45.73]
[1672884518144,0.06498684,13.155,13.148,0.06008052]
[1672884518350,53.61428684,13.155,13.148,0.06008052]
[1672884518564,10.0,13.154,13.148,0.06008052]
[1672884521090,53.61428684,13.155,13.148,0.06008052]
[1672884522668,10.0,13.154,13.148,0.06008052]
[1672884526450,43.61428684,13.155,13.148,0.06008052]
[1672884526763,43.61428684,13.155,13.148,15.28008052]
[1672884526974,0.06498684,13.155,13.148,15.28008052]
[1672884528233,0.06498684,13.155,13.149,15.2]
[1672884528755,0.00498684,13.155,13.151,15.22]
[1672884528964,584.0,13.161,13.154,76.02]
[1672884529176,584.0,13.161,13.16,15.22]
[1672884529390,854.0,13.164,13.16,15.22]
[1672884529597,2462.4748,13.169,13.158,15.22]
[1672884529912,82.149228,13.168,13.159,0.07009466]
[1672884530122,10.0,13.167,13.159,0.06862437]
[1672884530324,15.2,13.165,13.153,15.14]
[1672884530540,10.0,13.159,13.148,15.22]
[1672884530755,594.0,13.159,13.148,15.22]
[1672884530961,10.0,13.158,13.148,15.22]
[1672884531484,10.06951847,13.158,13.148,15.22]
[1672884534959,25.28951847,13.158,13.146,15.22]
[1672884535273,0.07021947,13.157,13.146,15.22]
[1672884535695,10.0,13.156,13.146,15.22]
[1672884538108,10.0,13.156,13.148,15.22]
[1672884538321,10.0,13.156,13.147,45.66]
[1672884538530,0.06589043,13.156,13.148,10.0]
[1672884538741,10.06589043,13.156,13.148,10.0]
[1672884539264,10.06589043,13.156,13.147,45.66]
[1672884547565,0.06589043,13.156,13.147,45.66]
[1672884547774,0.06589043,13.156,13.148,10.0]
[1672884548194,10.06589043,13.156,13.148,10.0]
[1672884548405,10.06589043,13.156,13.147,45.66]
[1672884548930,0.06589043,13.156,13.149,45.66]
[1672884549140,44.21870297,13.157,13.149,45.66]
[1672884554705,0.06330297,13.157,13.151,45.66]
[1672884554915,0.06330297,13.157,13.152,45.56]
[1672884555131,0.06330297,13.157,13.156,45.44]
[1672884555336,0.06757199,13.161,13.156,45.44]
[1672884555544,0.06020375,13.163,13.156,45.44]
[1672884555764,0.06020375,13.163,13.157,45.44]
[1672884555974,0.06020375,13.163,13.158,10.0]
[1672884556182,0.06020375,13.163,13.157,45.44]
[1672884556393,0.06020375,13.163,13.159,45.66]
[1672884556604,0.06020375,13.163,13.16,10.0]
[1672884556916,0.06495039,13.166,13.159,45.66]
[1672884558070,0.06495039,13.166,13.16,10.0]
[1672884558799,0.06495039,13.166,13.159,45.66]
[1672884559014,0.06495039,13.166,13.16,10.0]
[1672884559324,10.06495039,13.166,13.159,45.66]
[1672884559539,0.06495039,13.166,13.159,45.66]
[1672884559751,0.06495039,13.166,13.16,10.0]
[1672884560166,0.06495039,13.166,13.159,45.66]
[1672884560377,0.06495039,13.166,13.16,10.0]
[1672884560906,0.06495039,13.166,13.159,45.66]
[1672884561116,0.06495039,13.166,13.16,10.0]
[1672884561536,0.06495039,13.166,13.159,45.66]